Cogmind - Beta 15 @@@ ROGUE MODE // 2025.10.17 @ 00:13:59 Player: SunnyVampire Result: Destroyed by D-53 Grenadier with Mini Grenade Launcher Performance ------------- Evolutions (0) 0 Regions Visited (2) 400 Robots Destroyed (13) 65 Value Destroyed (261) 261 Prototype IDs (2) 40 Alien Tech Used (0) 0 Bonus (0) 0 TOTAL SCORE: 766 Bonus ------- None Cogmind --------- Core Integrity 0/250 Matter 282/300 Energy 121/250 System Corruption 2% Temperature Cool (0) Movement Walking (190) Ox1 Location -10/Mines Parts ------- > --- POWER (1) -------- Ion Engine > --- PROPULSION (2) --- Aluminum Leg > --- UTILITY (2) ------ Small Storage Unit > --- WEAPON (2) ------- Light Assault Rifle > --- INVENTORY (8) ---- Aluminum Leg Structural Scanner Targeting Computer Targeting Computer Peak State ------------ > --- POWER ------------ Ion Engine > --- PROPULSION ------- Aluminum Leg Aluminum Leg > --- UTILITY ---------- Small Storage Unit Terrain Scanner > --- WEAPON ----------- Particle Gun Light Assault Rifle > --- INVENTORY -------- Ion Engine Aluminum Leg Aluminum Leg Structural Scanner Targeting Computer Targeting Computer [Rating: 8] Favorites ----------- Power Ion Engine Engine Ion Engine Propulsion Light Treads Treads Light Treads Leg Aluminum Leg Utility Small Storage Unit Device Terrain Scanner Storage Small Storage Unit Weapon Light Assault Rifle Energy Gun Particle Gun Ballistic Gun Light Assault Rifle Build | -11 -10 -10 ------- Run | Yrd Mat Min Slots Evolved . | . . . Power . | . . . Propulsion . | . . . Utility . | . . . Weapon . | . . . Parts Attached 14 | 6 . 8 Power 2 | 1 . 1 Engine 2 | 1 . 1 Core . | . . . Reactor . | . . . Propulsion 5 | 2 . 3 Treads 2 | 2 . . Leg 3 | . . 3 Wheel . | . . . Hover . | . . . Flight . | . . . Utility 2 | 1 . 1 Device 1 | . . 1 Storage 1 | 1 . . Processor . | . . . Hackware . | . . . Protection . | . . . Artifact . | . . . Weapon 5 | 2 . 3 Energy Gun 1 | . . 1 Energy Cannon . | . . . Ballistic Gun 4 | 2 . 2 Ballistic Cannon . | . . . Launcher . | . . . Special Weapon . | . . . Impact Weapon . | . . . Slashing Weapon . | . . . Piercing Weapon . | . . . Special Melee Weapon . | . . . Unidentified Prototypes . | . . . Parts Lost 10 | . . 10 Power 1 | . . 1 Propulsion 4 | . . 4 Utility 1 | . . 1 Weapon 4 | . . 4 Highest Loss Streak 5 | . . 5 To Critical Strikes . | . . . Average Backups 6 | 3 6 6 Power . | . 1 1 Propulsion 2 | 2 3 2 Utility 1 | . . 1 Weapon 1 | . 1 1 Tool/Special . | . . . Unused Backups 7 | . . 7 Power 1 | . . 1 Propulsion 2 | . . 2 Utility 3 | . . 3 Weapon 1 | . . 1 Tool/Special . | . . . Average Slot Usage (%) 88 | . 85 91 Engine 13 | . 14 13 Treads 15 | . 28 2 Leg 11 | . . 23 Device 4 | . . 9 Storage 14 | . 14 14 Ballistic Gun 26 | . 28 24 Peak Build Rating 8 | 6 6 8 Average Rating 6 | 4 6 6 On Entrance 4 | . 6 6 Naked Turns . | . . . Heaviest Build 15 | 13 13 15 Greatest Support 40 | 40 40 40 Greatest Overweight (x) 3 | 3 . 3 Average Overweight (x) . | . . . Largest Inventory Capacity 8 | 8 8 8 Average Capacity 7 | 7 8 8 Most Carried 8 | 6 8 8 Average Carried 6 | 3 6 6 Final Capacity 8 | 8 8 8 Final Carried 8 | 4 8 4 Class Distribution -------------------- 100% | Mutant Dominant Class ---------------- Mutant | -10/Materials Mutant | -10/Mines Resources | -11 -10 -10 ----------- Run | Yrd Mat Min Matter Collected 466 | 236 136 94 Remotely . | . . . Salvage Created 386 | . 248 138 Parts 27 | . 16 11 Haulers Intercepted . | . . . Recyclers Shooed 1 | . 1 . Parts Field Recycled . | . . . Retrieved Matter . | . . . Parts Self-Destructed . | . . . Prevented . | . . . Kills | -11 -10 -10 ------- Run | Yrd Mat Min Combat Hostiles Destroyed 11 | . 5 6 Guns 11 | . 5 6 Classes Destroyed 6 | . 5 1 Tunneler 1 | . 1 . Recycler 1 | . 1 . Watcher 1 | . 1 . Swarmer 6 | . 3 3 Grunt 4 | . 2 2 Assembled 1 | . . 1 Best Kill Streak 5 | . 5 2 Combat Bots Only 3 | . 3 2 Max Kills in Single Turn 1 | . 1 1 Gunslinging . | . . . Exploded . | . . . Melee . | . . . Uniques/NPCs Destroyed . | . . . Combat | -11 -10 -10 -------- Run | Yrd Mat Min Hostile Shots Fired 107 | . 54 53 Missed 28 | . 21 7 Hits 79 | . 33 46 Melee 11 | . . 11 Projectile 68 | . 33 35 AOE 6 | . . 6 Critical Strikes 2 | . 1 1 Damage Taken 1264 | . 320 944 Core 267 | . 36 231 Absorbed by Shields . | . . . Core Remaining (%) 100 | 100 . . Volleys Fired 62 | . 31 31 Largest 2 | . 2 2 Hottest 85 | . 40 85 Shots Fired 115 | . 62 53 Gun 115 | . 62 53 Cannon . | . . . Launcher . | . . . Special . | . . . Kinetic 112 | . 62 50 Thermal 3 | . . 3 Explosive . | . . . Electromagnetic . | . . . Robot Hit Streak 12 | . 4 12 Robot Miss Streak 5 | . 5 4 Penetration Max . | . . . Secondary Targets 2 | . 1 1 Max Gunslinging Chain 1 | . 1 1 Shots Hit Robots 58 | . 25 33 Core Hits 22 | . 11 11 Critical Kills 1 | . 1 . Critical Parts Destroyed . | . . . Critical Strikes 1 | . 1 . Destroy 1 | . 1 . Melee Attacks . | . . . Impact . | . . . Slashing . | . . . Piercing . | . . . Sneak Attacks . | . . . Combat Hostiles . | . . . Follow-up Attacks . | . . . Damage Inflicted 628 | . 313 315 Guns 628 | . 313 315 Cannons . | . . . Explosions . | . . . Melee . | . . . Ramming . | . . . Kinetic 610 | . 313 297 Thermal 18 | . . 18 Explosive . | . . . Electromagnetic . | . . . Impact . | . . . Slashing . | . . . Piercing . | . . . Highest Corruption 2 | . . 2 Average Corruption 2 | . . 2 Corruption Purged . | . . . Corruption Blocked . | . . . Overload Shots . | . . . Overflow Damage . | . . . Projectiles . | . . . Explosions . | . . . Melee . | . . . Knockbacks . | . . . Impact . | . . . Kinetic . | . . . Secondary . | . . . Self-Inflicted Damage . | . . . Shots . | . . . Rammed . | . . . Targets Rammed . | . . . Kicked . | . . . Crushed . | . . . Highest Temperature 88 | . 15 88 Average Temperature 18 | . 8 20 Received Heat Transfer 228 | . 69 159 Siege Activations . | . . . Martial Activations . | . . . Shielding Activations . | . . . Robots Disrupted . | . . . Combat Hostiles . | . . . Robots Corrupted . | . . . Combat Hostiles . | . . . Parts Fried . | . . . Impact Corruptions . | . . . Robots Melted . | . . . Combat Hostiles . | . . . Parts Melted . | . . . Heat Transferred 37 | . . 37 Parts Sabotaged . | . . . Parts Stolen . | . . . Parts Stripped . | . . . Power Chain Reactions . | . . . Alert | -11 -10 -10 ------- Run | Yrd Mat Min Maximum Alert Level . | . . . Low Security (%) 100 | 100 100 100 Level 1 . | . . . Level 2 . | . . . Level 3 . | . . . Level 4 . | . . . Level 5 . | . . . High Security . | . . . Max Security . | . . . Peak Influence 100 | . 100 75 Initial 9 | . . 9 Average 27 | . 37 24 Influence Increases 294 | . 144 150 Destroy 0b10 Robot/C 200 | . 100 100 Destroy 0b10 Robot/NC 15 | . 15 . Destroy Leader 42 | . 22 20 Successful Hack 6 | . 6 . Disable Machine 15 | . . 15 Destroy Structure 1 | . 1 . Lose Combat Pursuer 15 | . . 15 Influence Decreases 294 | . 120 174 Entered New Map 15 | . . 15 Time Decay 249 | . 120 129 Lost Part 30 | . . 30 Squads Dispatched 1 | . 1 . Investigation 1 | . 1 . Extermination . | . . . Reinforcement . | . . . Assault . | . . . Garrison . | . . . Intercept . | . . . Searches Triggered . | . . . Construction Impeded . | . . . Haulers Reinforced . | . . . Active Scanning Responses . | . . . Cargo Convoy Interrupts . | . . . Stealth | -11 -10 -10 --------- Run | Yrd Mat Min Distress Signals 1 | . 1 . Communications Jammed . | . . . Distress Signals . | . . . Times Spotted 25 | . 8 17 Peak Tracking Total 12 | . 5 12 Tactical Retreats 2 | . . 2 Traps | -11 -10 -10 ------- Run | Yrd Mat Min Traps Triggered 1 | . 1 . Indirectly . | . . . Trap Hack Attempts . | . . . Triggered . | . . . Disarmed . | . . . Reprogrammed . | . . . Reused . | . . . Traps Extracted . | . . . Installed . | . . . Triggered . | . . . Machines | -11 -10 -10 ---------- Run | Yrd Mat Min Machines Disabled 1 | . . 1 Max in Single Turn 1 | . . 1 Machines Repaired . | . . . Machines Dismantled . | . . . Machines Sabotaged . | . . . Overloaded Fab Kills . | . . . Hacking | -11 -10 -10 --------- Run | Yrd Mat Min Machines Accessed 3 | . 3 . Terminals 2 | . 2 . Fabricators . | . . . Repair Stations . | . . . Recycling Units 1 | . 1 . Scanalyzers . | . . . Garrison Access . | . . . Total Hacks 6 | . 6 . Successful 3 | . 3 . Failed 3 | . 3 . Catastrophic 1 | . 1 . Database Lockouts . | . . . Manual 3 | . 3 . Terminals 5 | . 5 . Fabricators . | . . . Repair Stations . | . . . Recycling Units 1 | . 1 . Scanalyzers . | . . . Garrison Access . | . . . Terminal Hacks 2 | . 2 . Prototype ID Bank 1 | . 1 . Alert Level 1 | . 1 . Fabricator Hacks . | . . . Repair Station Hacks . | . . . Recycling Unit Hacks 1 | . 1 . Report Inventory 1 | . 1 . Scanalyzer . | . . . Garrison Access Hacks . | . . . Unauthorized Hacks . | . . . Terminals . | . . . Fabricators . | . . . Repair Stations . | . . . Recycling Units . | . . . Scanalyzers . | . . . Garrison Access . | . . . Data Cores Recovered . | . . . Used . | . . . Hacking Detections 1 | . 1 . Full Trace Events . | . . . Feedback Events . | . . . Feedback Blocked . | . . . Robot Schematics Acquired . | . . . Robots Built . | . . . Authchips . | . . . Time . | . . . Total Robot Build Rating . | . . . Part Schematics Acquired . | . . . Parts Built . | . . . Authchips . | . . . Time . | . . . Total Part Build Rating . | . . . Parts Repaired . | . . . Time . | . . . Parts Recycled . | . . . Recycled Matter . | . . . Retrieved Matter . | . . . Retrieved Components . | . . . Parts Scanalyzed . | . . . Part Schematics Acquired . | . . . Parts Damaged . | . . . Bothacking | -11 -10 -10 ------------ Run | Yrd Mat Min Used RIF Installer . | . . . Robots Hacked . | . . . Non-combat . | . . . Combat . | . . . Robot Hacks Applied . | . . . Relay Couplers Released . | . . . Fabnet Peak Effective % . | . . . Robots Rewired . | . . . Allies Hacked . | . . . Hacks Repelled . | . . . Allies | -11 -10 -10 -------- Run | Yrd Mat Min Total Allies 2 | . . 2 Largest Group 2 | . . 2 Highest-Rated Group 38 | . . 38 Highest-Rated Ally 31 | . . 31 Total Orders . | . . . Ally Attacks 5 | . . 5 Total Damage 41 | . . 41 Kills 2 | . . 2 Allies Corrupted . | . . . Allies Melted . | . . . Intel | -11 -10 -10 ------- Run | Yrd Mat Min Active Infowar (turns) 272 | . . 272 Terrain 272 | . . 272 Robot Analysis Total . | . . . Derelict Logs Recovered . | . . . Drone Launches . | . . . Drone Recoveries . | . . . Exploration | -11 -10 -10 ------------- Run | Yrd Mat Min Turns Passed 877 | 89 391 397 Spaces Moved 486 | 55 181 250 Core 29 | 25 . 4 Treads 215 | 30 181 4 Legs 242 | . . 242 Wheels . | . . . Hover . | . . . Flight . | . . . Fastest Speed 50 | 50 160 120 Average Speed 137 | 138 160 121 Slowest Speed 200 | 200 160 200 Overloaded Moves . | . . . Propulsion Burnouts . | . . . Robots Hopped . | . . . Potential Cave-ins . | . . . Cave-ins Triggered . | . . . Exploration Rate (%) 25 | 6 39 32 Regions Visited 2 Branch Regions 1 Pre-discovered Areas . | . . . Known Exits Taken . | . . . Unknown Exits Taken 2 | 1 1 . Scrap Searched 1 | . . 1 Spaces Dug . | . . . Terrain Destroyed . | . . . Melee . | . . . Projectile . | . . . AOE . | . . . Terrain Rammed . | . . . Walls Destroyed . | . . . Machines Disabled . | . . . Actions | -11 -10 -10 --------- Run | Yrd Mat Min Total 593 | 67 227 299 Wait 12 | . 12 . Move 484 | 54 180 250 Hop . | . . . Pick Up 18 | 7 4 7 Fast Attach 3 | 3 . . Attach 11 | 3 . 8 Detach . | . . . Swap . | . . . Drop 3 | . . 3 Fire 62 | . 31 31 Melee . | . . . Ram . | . . . Kick . | . . . Crush . | . . . Escape Stasis . | . . . Rewire . | . . . Trap . | . . . Miscellaneous . | . . . Route ------- -11/Scrapyard -10/Materials -10/Mines History --------- Turn | Location | Event 6 | -11/Scrapyard | Discovered new exit (range 14) 90 | -11/Scrapyard | Entered Materials 300 | -10/Materials | Build established: Mutant 414 | -10/Materials | Discovered new exit (range 9) 481 | -10/Materials | Entered Mines 548 | -10/Mines | Lost 3 parts (2n1w) 786 | -10/Mines | Assembled infested the area 842 | -10/Mines | Core integrity fell below 50% 874 | -10/Mines | Core integrity fell below 20% 878 | -10/Mines | Destroyed by D-53 Grenadier with Mini Grenade Launcher Last Messages --------------- 00846_ Switching to secondary target: as-69045. 00850_ Knocked back. 00856_ Terrain Scanner destroyed. 00856_ System corrupted by crushing effect (+2). 00862_ as-09805 sneak attacks. 00862_ T-07 Excavator destroyed. 00867_ C-30 ARC bursts open, deploying its payload. 00867_ D-53 Grenadier unfolds itself. 00868_ Aluminum Leg destroyed. 00868_ Ion Engine destroyed. 00869_ as-69045 destroyed. 00870_ as-09805 destroyed. 00870_ as-40029 destroyed. 00871_ Particle Gun destroyed. 00871_ R-06 Scavenger destroyed. 00872_ The unstable cave ceiling collapses. 00874_ as-98751 destroyed. 00874_ as-93702 destroyed. 00878_ Aluminum Leg destroyed. Map ----- +----------------------------------------------------+ | ??????????????# #?#??#????#?# ##??#??#?#???? | | ??????????????# ############# #????????????? | | ??????????????# %%%*! % !#?#??????????? | | ??????#???????###############=%#????#???????? | | ?????????????????????????#??# %###??????????? | | ?????????#?#???#?#??#??????## #######????? | | ????? ?????????#??########## ##???? | | ??????????????????# % #??#? | | ????????????????#?# ####### ! #???? | | ????????????#???#?# #????#### # ##???? | | ????????????# ?##?# #?????#?# ### ####????? | | ?????? ?????# ## #???????# ### #?#?????? | | ???????????## #?????#?# #?# #???????? | | ??????????## % #???????# #?# #???????? | | ???????????# ! ##??#????# #?# #????#??? | | ???????????# % | ##?##????# #?# ###?????? | | ??????????## ##??##??# #?# #?????? | | ????## ##### #??????? #?# #?????? | | ? d ####???? #?### #?????? | | ???######## ##??# ##### #?????? | | ???????????## d #??## #????#? | | ????????????# #???####### ##????? | | ????????????## = #????????## ###??? | | ?????????????### [%= #???????##!= ##?? | | ??????????????## ######### ##? | | ???????????????## @ # / #? | | ????????????????# # ####### ## ! #? | | ????????????????# ## ####?????# ####### ##? | | ????????????????# ## ########## ###???###?? | | ????????????????# = ##??????? | | ????????????????# =%[ ###????? | | ????????????????####### ######## ##???? | | ?????????????????????????#?????## ##??? | | ????????????????????????????????### ##?? | | ????????????????????????????????#?# #?? | | ??????????????????????????????????# #?? | | ??????????????????????????????????# ##?? | | ??????????????????????????????????## ##?? | | ????????????????????????????????? ?## #?? | | ????????????????????????????????????## #?? | | ?????????????????????????????????????## ##?? | | ??????????????????????????????????????#=##??? | | ???????????????????????????#???????#??#=#???? | | ??????????????????????????????????????#%###?? | | ??????????????????????????????????????#%=[#?? | | ????????????????????????????????????#?### #?? | | ????????????????????????????????????????# #?? | | ??????????????????????????????????####### ##? | | ??????????????????????????????????# #? | | ??????????????????????????????????# #? | +----------------------------------------------------+ Best States ------------- Heat Dissipation 25 Energy Generation 10 Energy Capacity 250 Matter Stores 300 Matter Capacity 300 Sight Range 16 Terrain Scan Range 14 Terrain Scan Density 10 Evasion (%) 55 Recoil Reduction 2 Item Schematics ----------------- None Robot Schematics ------------------ None Fabricated ------------ Nothing Repaired ---------- Nothing Alien Tech Used ----------------- None Achievements -------------- None Challenges ------------ None Game ------ Seed EfficiencyChargeMeganuke Manual? 0 Play Time 00:12:23 Cumulative 13.5 hours Start 2025.10.17 @ 00:01:39 End 2025.10.17 @ 00:13:59 Sessions 1 Manual Loads 0 Difficulty Rogue Special Mode None Game No. 20 Rogue 20 Adventurer 0 Explorer 0 Win Type - Total 0 Types 0/0/0/0/0/0/0/0/0/0 Lore% 11 Gallery% 10 Achievement% 18 Wizard Run 0 Options --------- Layout 1 ASCII 0 Keyboard 1 Movement Numpad Keybinds 0 Fullscreen 1 Font 24/Smallcaps Map View 50x35 Zoom Use 0% Tactical HUD 1 Map Filters NONE Filters NONE Steam 1 RUN: c8ccf937-1d95-4c78-b219-bb192d9fc3fd